lending/lending_fUSD_20240928
["ID","MTS","AMOUNT","RATE_DAILY","PERIOD"]
[339376958,1727511046262,-12784.99691566,0.000129,2]
[339376959,1727511046273,-778.43273632,0.000129,2]
[339376960,1727511046284,-608.35712949,0.000129,2]
[339376961,1727511046295,-2399.13198182,0.000129,2]
[339376962,1727511046306,-13592.71538904,0.000129,2]
[339376963,1727511046318,-695.19249147,0.000129,2]
[339377269,1727511066019,500.0,0.00022,120]
[339377270,1727511066289,500.0,0.00022,120]
[339377271,1727511066492,500.0,0.00022,120]
[339377272,1727511066950,500.0,0.00022,120]
[339377273,1727511067416,500.0,0.00022,120]
[339377274,1727511067912,500.0,0.00022,120]
[339377275,1727511068388,500.0,0.00022,120]
[339377276,1727511068860,500.0,0.00022,120]
[339377277,1727511069669,500.0,0.00022,120]
[339377278,1727511070134,500.0,0.00022,120]
[339377279,1727511070621,500.0,0.00022,120]
[339377280,1727511071587,200.31332974,0.00022,120]
[339377352,1727511189816,317.512048,0.00021999,120]
[339377353,1727511191841,2000.0,0.00021999,120]
[339377354,1727511215641,633.985323,0.00021999,120]
[339377355,1727511220807,207.43784,0.00021999,120]
[339377356,1727511541965,455.0,0.00022,120]
[339377357,1727511561228,331.0,0.00021,60]
[339377406,1727511605815,372.69,9.62e-05,2]
[339377408,1727511666521,500.0,0.00022,120]
[339377409,1727511690070,290.0,0.00022,120]
[339377419,1727511793960,2000.0,0.00021999,120]
[339377470,1727511982390,216.94,0.00010959,2]
[339377497,1727512080306,2027.10128888,0.00022,120]
[339377499,1727512099923,279.29807873,0.00021,60]
[339377500,1727512101172,1000.0,0.00022,120]
[339377503,1727512132275,511.9,0.00022,120]
[339377506,1727512149188,354.05,9.605e-05,2]
[339377523,1727512232105,-344.02,0.00011453,2]
[339377524,1727512232114,-1820.62,0.0001148,2]
[339377525,1727512232124,-2751.0,0.00011507,2]
[339377526,1727512232134,-250.0,0.00011521,2]
[339377527,1727512232144,-480.0,0.00011524,2]
[339377528,1727512232154,-273.98,0.00011551,2]
[339377529,1727512232164,-334.99,0.00011568,2]
[339377530,1727512232173,-236.47350671,0.00011585,3]
[339377531,1727512232187,-263.52649329,0.00011585,3]
[339377532,1727512232196,-250.0,0.00011589,2]
[339377533,1727512232205,-150.0,0.00011589,2]
[339377534,1727512232215,-591.24350043,0.00011589,2]
[339377535,1727512232227,-479.57301165,0.00011589,2]
[339377536,1727512232333,-22.67348792,0.00011589,2]
[339377537,1727512232345,-499.99,0.00011589,2]
[339377538,1727512232355,-54.4260169,0.00011637,2]
[339377539,1727512232367,-465.5739831,0.00011637,2]
[339377540,1727512232377,-354.05,0.00011869,2]
[339377541,1727512232386,-269.70355958,0.000119,4]
[339377542,1727512232398,-30.29644042,0.000119,4]
[339377543,1727512232408,-186.96,0.00011911,2]
[339377544,1727512232418,-355.0,0.00011993,2]
[339377545,1727512232431,-600.0,0.00012,4]
[339377546,1727512232441,-388.0,0.00012092,2]
[339377547,1727512232451,-1000.0,0.000121,4]
[339377548,1727512232460,-399.0,0.00012192,2]
[339377549,1727512232470,-1300.0,0.000122,4]
[339377550,1727512232480,-333.0,0.00012296,2]
[339377551,1727512232489,-1700.0,0.000123,4]
[339377552,1727512232499,-333.0,0.00012396,2]
[339377553,1727512232509,-300.0,0.000124,4]
[339377554,1727512232519,-196.666709,0.00012406,2]
[339377555,1727512232528,-169.910633,0.00012406,2]
[339377556,1727512232539,-2000.0,0.000125,7]
[339377557,1727512232548,-300.0,0.000125,4]
[339377558,1727512232558,-196.666709,0.00012561,2]
[339377559,1727512232567,-300.0,0.000126,4]
[339377560,1727512232577,-44227.95885407,0.000127,2]
[339377561,1727512235141,-624.98309306,0.0001268,2]
[339377566,1727512238257,-1472.81470694,0.0001268,2]
[339377567,1727512238268,-466.98688935,0.000127,2]
[339377568,1727512238528,-1068.87011896,0.000127,2]
[339377569,1727512238724,-1001.26233055,0.000127,2]
[339377591,1727512240166,-563.31,0.000127,2]
[339377592,1727512240178,-263.94817882,0.000127,2]
[339377594,1727512240335,-12953.41152825,0.000127,2]
[339377595,1727512240345,-300.0,0.000127,4]
[339377596,1727512240355,-196.666709,0.00012716,2]
[339377597,1727512240365,-1293.05037825,0.0001278,2]
[339377598,1727512240377,-11356.72648541,0.0001278,2]
[339377599,1727512240387,-1145.306,0.00012791,2]
[339377600,1727512240396,-623.581,0.00012791,2]
[339377601,1727512240406,-39.46406148,0.00012791,2]
[339377602,1727512240418,-389.65337639,0.00012791,2]
[339377603,1727512240430,-650.88256213,0.00012791,2]
[339377604,1727512240440,-190.14220472,0.00012799,2]
[339377605,1727512240452,-422.97119528,0.00012799,2]
[339377606,1727512240461,-2064.8637,0.00012799,2]
[339377607,1727512240470,-359.28209276,0.000128,2]
[339377608,1727512240482,-735.24402019,0.000128,2]
[339377609,1727512240493,-1029.25082628,0.000128,2]
[339377616,1727512243206,-689.66058888,0.000128,2]
[339377621,1727512243263,-572.12483499,0.000128,2]
[339377622,1727512243481,-6614.4376369,0.000128,2]
[339377623,1727512243491,-886.0,0.000128,4]
[339377624,1727512243501,-152.88819667,0.000128,2]
[339377625,1727512243511,-152.88819667,0.000128,2]
[339377626,1727512243521,-152.88819667,0.000128,2]
[339377627,1727512243531,-152.88819667,0.000128,2]
[339377628,1727512243540,-153.38,0.000128,2]
[339377629,1727512243550,-166.22702171,0.000128,2]
[339377630,1727512243559,-166.22702171,0.000128,2]
[339377631,1727512243568,-166.22702171,0.000128,2]
[339377632,1727512243578,-166.72,0.000128,2]
[339377633,1727512243587,-155.54788472,0.000128,2]
[339377634,1727512243597,-155.54788472,0.000128,2]
[339377635,1727512243606,-155.54788472,0.000128,2]
[339377636,1727512243615,-156.04,0.000128,2]
[339377637,1727512243624,-582.71553029,0.000128,2]
[339377638,1727512243634,-406.502,0.0001285,2]
[339377639,1727512243643,-582.71553027,0.0001285,2]
[339377640,1727512243652,-196.666709,0.00012871,2]
[339377641,1727512243662,-344.02,0.00012884,2]
[339377642,1727512243671,-582.73,0.00012899,2]
[339377643,1727512243681,-2146.67,0.00012899,2]
[339377644,1727512243691,-2146.67,0.00012899,2]
[339377645,1727512243700,-2146.67,0.00012899,2]
[339377646,1727512243710,-2146.67,0.00012899,2]
[339377647,1727512243719,-2146.67,0.00012899,2]
[339377648,1727512243729,-2146.67,0.00012899,2]
[339377649,1727512243738,-2146.67,0.00012899,2]
[339377650,1727512243747,-2146.67,0.00012899,2]
[339377651,1727512243757,-2146.67,0.00012899,2]
[339377652,1727512243766,-2146.67,0.00012899,2]
[339377653,1727512243776,-2146.67,0.00012899,2]
[339377654,1727512243785,-1702.74910875,0.00012899,2]
[339377655,1727512243797,-256.16297046,0.00012899,2]
[339377665,1727512246188,-187.75792079,0.00012899,2]
[339377666,1727512246199,-76.51907921,0.00012899,2]
[339377667,1727512246210,-2070.15092079,0.00012899,2]
[339377668,1727512246219,-2146.67,0.00012899,2]
[339377669,1727512246227,-2146.67,0.00012899,2]
[339377670,1727512246236,-2146.67,0.00012899,2]
[339377671,1727512246245,-2146.67,0.00012899,2]
[339377672,1727512246255,-2146.67,0.00012899,2]
[339377673,1727512246265,-2146.67,0.00012899,2]
[339377674,1727512246274,-2146.67,0.00012899,2]
[339377675,1727512246283,-2146.67,0.00012899,2]
[339377676,1727512246293,-2146.67,0.00012899,2]
[339377677,1727512246302,-2146.67,0.00012899,2]
[339377678,1727512246312,-2146.73776831,0.00012899,2]
[339377679,1727512246321,-1889.04,0.00012899,2]
[339377680,1727512246330,-1889.04,0.00012899,2]
[339377681,1727512246339,-1889.04,0.00012899,2]
[339377682,1727512246348,-1825.33582393,0.00012899,2]
[339377683,1727512246431,-63.70417607,0.00012899,2]
[339377684,1727512246440,-1889.04,0.00012899,2]
[339377685,1727512246451,-1889.04,0.00012899,2]
[339377686,1727512246461,-1889.04,0.00012899,2]
[339377687,1727512246470,-1889.04,0.00012899,2]
[339377688,1727512246479,-1889.04,0.00012899,2]
[339377689,1727512246489,-1889.04,0.00012899,2]
[339377690,1727512246498,-443.41310545,0.00012899,2]
[339377691,1727512246510,-637.99,0.00012899,2]
[339377693,1727512261002,3718.87,0.00022,120]
[339377694,1727512268434,500.0,0.00022,120]
[339377697,1727512392681,2000.0,0.00021999,120]
[339377703,1727512652741,1050.0,0.00011,2]
[339377704,1727512703932,339.52,9.645e-05,2]
[339377784,1727512869358,500.0,0.00022,120]
[339377785,1727512991413,2000.0,0.00021999,120]
[339377787,1727513097107,156.4025683,0.0001,2]
[339377824,1727513236267,322.54,9.59e-05,2]
[339377861,1727513432425,-298.76,0.00011443,2]
[339377862,1727513432434,-186.96,0.00011443,2]
[339377863,1727513432445,-14.28,0.00011454,2]
[339377864,1727513432456,-300.0,0.00011454,2]
[339377865,1727513432467,-28.07,0.00011454,2]
[339377866,1727513432476,-384.0,0.00011514,2]
[339377867,1727513432485,-300.0,0.00011527,2]
[339377868,1727513432494,-1406.20333648,0.00011527,2]
[339377869,1727513432505,-1757.76879465,0.00011527,2]
[339377870,1727513432516,-686.86837191,0.00011527,2]
[339377871,1727513432536,-363.21737745,0.00011527,2]
[339377959,1727513438447,-427.20419193,0.00011527,2]
[339377960,1727513438557,-31844.98063836,0.00011527,2]
[339377961,1727513438665,-4007.57782,0.00011527,2]
[339377962,1727513438720,-691.69526512,0.00011527,2]
[339377966,1727513440495,-1439.52291178,0.00011527,2]
[339377967,1727513440658,-7374.96129232,0.00011527,2]
[339377968,1727513440669,-250.0,0.00011528,2]
[339377969,1727513440678,-356.43,0.0001153,2]
[339377970,1727513440688,-250.0,0.00011532,2]
[339377971,1727513440697,-150.0,0.00011535,2]
[339377972,1727513440706,-2751.0,0.00011536,2]
[339377973,1727513440715,-737.75,0.00011536,2]
[339377974,1727513440724,-499.99,0.00011536,2]
[339377975,1727513440733,-1074.43,0.00011537,2]
[339377976,1727513440742,-250.0,0.0001155,2]
[339377977,1727513440752,-2319.04,0.0001155,2]
[339377978,1727513440762,-5523.27,0.00011653,2]
[339377979,1727513440771,-616.0,0.00011671,2]
[339377980,1727513440782,-163.97,0.00011772,2]
[339377982,1727513440791,-322.54,0.00011854,2]
[339377983,1727513440801,-700.0,0.000119,4]
[339377984,1727513440811,-2000.0,0.00012,5]
[339377985,1727513440821,-1400.0,0.00012,4]
[339377986,1727513440830,-2200.0,0.000121,4]
[339377987,1727513440839,-2900.0,0.000122,4]
[339377988,1727513440848,-3700.0,0.000123,4]
[339377989,1727513440859,-10361.53,0.00012343,2]
[339377990,1727513440869,-270.73,0.00012379,2]
[339377991,1727513440878,-700.0,0.000124,4]
[339377992,1727513440887,-154.685097,0.00012406,2]
[339377993,1727513440896,-168.57,0.00012445,2]
[339377994,1727513440906,-700.0,0.000125,4]
[339377995,1727513440915,-150.0,0.00012596,2]
[339377996,1727513440924,-700.0,0.000126,4]
[339377997,1727513440934,-180.0,0.00012618,2]
[339377998,1727513440944,-420.0,0.0001266,2]
[339377999,1727513440953,-700.0,0.000127,4]
[339378000,1727513440964,-154.685097,0.00012716,2]
[339378001,1727513440974,-505.117,0.00012781,2]
[339378002,1727513440983,-9459.9193,0.00012799,2]
[339378003,1727513440993,-13229.5475,0.00012799,2]
[339378004,1727513441002,-1210.0,0.000128,4]
[339378005,1727513441011,-152.8636065,0.000128,2]
[339378006,1727513441020,-152.8636065,0.000128,2]
[339378007,1727513441030,-152.8636065,0.000128,2]
[339378008,1727513441039,-153.36,0.000128,2]
[339378009,1727513441048,-177.27595793,0.000128,2]
[339378010,1727513441059,-177.27595793,0.000128,2]
[339378011,1727513441068,-177.77,0.000128,2]
[339378012,1727513441077,-165.88493602,0.000128,2]
[339378013,1727513441086,-165.88493602,0.000128,2]
[339378014,1727513441094,-166.38,0.000128,2]
[339378015,1727513441103,-362.062,0.00012867,2]
[339378016,1727513441112,-153.35,0.0001289,2]
[339378017,1727513441121,-153.35,0.0001289,2]
[339378018,1727513441130,-190.84835501,0.0001289,2]
[339378019,1727513441141,-190.84835501,0.0001289,2]
[339378020,1727513441151,-295.12920309,0.00012899,2]
[339378021,1727513441160,-638.74,0.00012899,2]
[339378022,1727513441170,-638.74,0.00012899,2]
[339378023,1727513441179,-638.74,0.00012899,2]
[339378024,1727513441188,-638.74,0.00012899,2]
[339378025,1727513441197,-638.74,0.00012899,2]
[339378026,1727513441206,-638.74,0.00012899,2]
[339378027,1727513441216,-638.74,0.00012899,2]
[339378028,1727513441225,-638.74,0.00012899,2]
[339378029,1727513441234,-638.74,0.00012899,2]
[339378030,1727513441242,-638.74,0.00012899,2]
[339378031,1727513441251,-638.74,0.00012899,2]
[339378032,1727513441260,-638.74,0.00012899,2]
[339378033,1727513441269,-638.74,0.00012899,2]
[339378034,1727513441278,-638.74,0.00012899,2]
[339378035,1727513441287,-638.74,0.00012899,2]
[339378036,1727513441295,-638.74,0.00012899,2]
[339378037,1727513441306,-638.74,0.00012899,2]
[339378038,1727513441316,-638.74,0.00012899,2]
[339378039,1727513441324,-638.74,0.00012899,2]
[339378040,1727513441334,-638.74,0.00012899,2]
[339378041,1727513441342,-638.74,0.00012899,2]
[339378042,1727513441351,-638.74,0.00012899,2]
[339378043,1727513441360,-638.74,0.00012899,2]
[339378044,1727513441369,-638.89906454,0.00012899,2]
[339378045,1727513441379,-1056.88,0.00012899,2]
[339378046,1727513441389,-1056.88,0.00012899,2]
[339378047,1727513441398,-1056.88,0.00012899,2]
[339378048,1727513441407,-1056.88,0.00012899,2]
[339378049,1727513441416,-1056.88,0.00012899,2]
[339378050,1727513441425,-1056.88,0.00012899,2]
[339378051,1727513441434,-1056.88,0.00012899,2]
[339378052,1727513441443,-1056.88,0.00012899,2]
[339378053,1727513441453,-1056.88,0.00012899,2]
[339378054,1727513441462,-1056.88,0.00012899,2]
[339378055,1727513441471,-1056.88,0.00012899,2]
[339378056,1727513441480,-1056.88,0.00012899,2]
[339378057,1727513441489,-1056.88,0.00012899,2]
[339378058,1727513441498,-1056.88,0.00012899,2]
[339378059,1727513441507,-1056.88,0.00012899,2]
[339378060,1727513441516,-1056.88,0.00012899,2]
[339378061,1727513441525,-1056.88,0.00012899,2]
[339378062,1727513441534,-1056.88,0.00012899,2]
[339378063,1727513441543,-1056.88,0.00012899,2]
[339378064,1727513441554,-1056.88,0.00012899,2]
[339378065,1727513441565,-1056.88,0.00012899,2]
[339378066,1727513441575,-1056.88,0.00012899,2]
[339378067,1727513441583,-1056.88,0.00012899,2]
[339378068,1727513441592,-1056.94804664,0.00012899,2]
[339378069,1727513441601,-500.0,0.00012899,2]
[339378070,1727513441611,-500.0,0.00012899,2]
[339378071,1727513441620,-500.0,0.00012899,2]
[339378072,1727513441629,-500.0,0.00012899,2]
[339378073,1727513441639,-500.0,0.00012899,2]
[339378074,1727513441648,-362.78674963,0.00012899,2]
[339378075,1727513441657,-500.0,0.00012899,2]
[339378076,1727513441668,-500.0,0.00012899,2]
[339378077,1727513441677,-500.0,0.00012899,2]
[339378078,1727513441686,-500.0,0.00012899,2]
[339378079,1727513441695,-500.0,0.00012899,2]
[339378080,1727513441704,-500.0,0.00012899,2]
[339378081,1727513441713,-500.0,0.00012899,2]
[339378082,1727513441722,-500.22888799,0.00012899,2]
[339378083,1727513441731,-500.0,0.00012899,2]
[339378084,1727513441741,-500.0,0.00012899,2]
[339378085,1727513441752,-500.0,0.00012899,2]
[339378086,1727513441763,-500.0,0.00012899,2]
[339378087,1727513441773,-500.0,0.00012899,2]
[339378088,1727513441782,-500.0,0.00012899,2]
[339378089,1727513441791,-500.0,0.00012899,2]
[339378090,1727513441800,-500.0,0.00012899,2]
[339378091,1727513441821,-266.13458776,0.00012899,2]
[339378092,1727513441830,-2072.76100335,0.000129,2]
[339378093,1727513441839,-184802.93651069,0.000129,2]
[339378094,1727513441848,-8988.0903005,0.000129,2]
[339378095,1727513443436,-169272.30430402,0.000129,2]
[339378096,1727513443492,-777.44010698,0.000129,2]
[339378103,1727513446345,-668.77499999,0.000129,2]
[339378104,1727513446445,-9972.89513767,0.000129,2]
[339378105,1727513446618,-1224.2385,0.000129,2]
[339378107,1727513466388,500.0,0.00022,120]
[339378135,1727513592140,2000.0,0.00021999,120]
[339378136,1727513926612,310.96,9.932e-05,2]
[339378143,1727514066843,500.0,0.00022,120]
[339378145,1727514191203,2000.0,0.00021999,120]
[339378176,1727514458386,1050.0,0.00011,2]
[339378185,1727514631533,-250.0,0.00011535,2]
[339378186,1727514631547,-250.0,0.00011535,2]
[339378187,1727514631556,-250.0,0.00011552,2]
[339378188,1727514631566,-307.2,0.00011552,2]
[339378189,1727514631575,-461.67,0.0001159,2]
[339378190,1727514631587,-6388.57745674,0.0001159,2]
[339378191,1727514631598,-327.47,0.00011773,2]
[339378192,1727514631609,-216.58,0.00011847,2]
[339378193,1727514631620,-163.97,0.00011847,2]
[339378194,1727514631632,-150.0,0.00011872,2]
[339378195,1727514631642,-2751.0,0.00011873,2]
[339378196,1727514631652,-145957.45,0.00011873,2]
[339378197,1727514631662,-499.99,0.00011873,2]
[339378198,1727514631672,-692.8,0.00011903,2]
[339378199,1727514631682,-177.85,0.00011949,2]
[339378200,1727514631692,-287.88,0.0001209,2]
[339378201,1727514631702,-310.96,0.00012196,2]
[339378202,1727514631711,-158.09,0.00012445,2]
[339378203,1727514631721,-294.88517851,0.00012762,2]
[339378204,1727514631730,-500.0,0.00012797,2]
[339378205,1727514631740,-1000.0,0.00012799,2]
[339378206,1727514631750,-1515.0074,0.000128,2]
[339378207,1727514631760,-330.172,0.000128,2]
[339378208,1727514631771,-612.6842302,0.000128,2]
[339378209,1727514631781,-7500.0,0.000128,2]
[339378210,1727514631791,-163.0214207,0.000128,2]
[339378211,1727514631802,-163.0214207,0.000128,2]
[339378212,1727514631813,-163.52,0.000128,2]
[339378214,1727514631822,-213.54069443,0.000128,2]
[339378216,1727514631835,-212.68174532,0.000128,2]
[339378218,1727514631845,-213.18,0.000128,2]
[339378220,1727514631855,-199.01241682,0.000128,2]
[339378222,1727514631865,-199.51,0.000128,2]
[339378224,1727514631875,-179.91941837,0.000128,2]
[339378226,1727514631885,-305.81414601,0.000128,2]
[339378228,1727514631895,-2379.91505313,0.000128,2]
[339378230,1727514631905,-213.54069442,0.0001285,2]
[339378232,1727514631915,-305.814146,0.0001285,2]
[339378234,1727514631926,-326.51,0.00012871,2]
[339378236,1727514631936,-500.0,0.00012873,2]
[339378238,1727514631946,-500.0,0.00012873,2]
[339378240,1727514631956,-500.0,0.00012873,2]
[339378242,1727514631966,-1016.9476,0.00012877,2]
[339378244,1727514631976,-153.0,0.0001289,2]
[339378246,1727514631986,-153.0,0.0001289,2]
[339378248,1727514631995,-500.0,0.00012899,2]
[339378250,1727514632006,-500.0,0.00012899,2]
[339378252,1727514632017,-500.0,0.00012899,2]
[339378254,1727514632028,-257.43538269,0.00012899,2]
[339378256,1727514632040,-500.0,0.00012899,2]
[339378258,1727514632050,-500.0,0.00012899,2]
[339378260,1727514632060,-562.42753635,0.00012899,2]
[339378262,1727514632070,-300.02,0.00012899,2]
[339378264,1727514632081,-500.0,0.00012899,2]
[339378266,1727514632091,-500.0,0.00012899,2]
[339378268,1727514632102,-500.0,0.00012899,2]
[339378270,1727514632111,-500.0,0.00012899,2]
[339378271,1727514632121,-500.0,0.00012899,2]
[339378272,1727514632131,-500.0,0.00012899,2]
[339378273,1727514632140,-500.0,0.00012899,2]
[339378274,1727514632150,-500.0,0.00012899,2]
[339378275,1727514632160,-500.0,0.00012899,2]
[339378276,1727514632171,-500.0,0.00012899,2]
[339378277,1727514632182,-500.0,0.00012899,2]
[339378278,1727514632191,-500.0,0.00012899,2]
[339378279,1727514632201,-500.0,0.00012899,2]
[339378280,1727514632211,-500.0,0.00012899,2]
[339378281,1727514632221,-500.0,0.00012899,2]
[339378283,1727514632231,-500.0,0.00012899,2]
[339378285,1727514632240,-500.0,0.00012899,2]
[339378287,1727514632250,-500.0,0.00012899,2]
[339378289,1727514632259,-500.0,0.00012899,2]
[339378291,1727514632269,-500.0,0.00012899,2]
[339378293,1727514632279,-500.0,0.00012899,2]
[339378295,1727514632288,-500.0,0.00012899,2]
[339378297,1727514632298,-500.0,0.00012899,2]
[339378299,1727514632308,-341.35728152,0.00012899,2]
[339378301,1727514632318,-3091.1423908,0.000129,2]
[339378303,1727514632329,-438602.32844276,0.000129,2]
[339378305,1727514632341,-489.17282747,0.000129,2]
[339378308,1727514632362,-544.57707993,0.000129,2]
[339378311,1727514632375,-418.54007673,0.000129,2]
[339378313,1727514632390,-546.70831491,0.000129,2]
[339378569,1727514636172,500.0,0.00011164,2]
[339378578,1727514637756,-15246.90432273,0.000129,2]
[339378579,1727514637767,-320455.91443111,0.000129,2]
[339378580,1727514637778,-5958.04911081,0.000129,2]
[339378581,1727514637790,-6592.62517292,0.000129,2]
[339378582,1727514637802,-3510.72,0.000129,2]
[339378583,1727514637814,-12294.39456971,0.000129,2]
[339378584,1727514637826,-1700.51020281,0.000129,2]
[339378585,1727514637864,-2713.17171302,0.000129,2]
[339378586,1727514637879,-1000.55839258,0.000129,2]
[339378597,1727514642593,-232.81432059,0.00012899,2]
[339378598,1727514642603,-1022.24935575,0.000129,2]
[339378599,1727514642649,-7993.45022661,0.000129,2]
[339378600,1727514642660,-653.44587086,0.000129,2]
[339378605,1727514642763,-4409.22542318,0.000129,2]
[339378606,1727514642775,-427.18428536,0.000129,2]
[339378607,1727514642787,-537.88,0.000129,2]
[339378608,1727514642798,-935.05871083,0.000129,2]
[339378616,1727514645700,-664.9,0.000129,2]
[339378617,1727514645841,-8111.93668961,0.000129,2]
[339378619,1727514666936,500.0,0.00022,120]
[339378620,1727514668203,292.62,0.00010229,2]
[339378650,1727514791048,2000.0,0.00021999,120]
[339378653,1727514997192,2000.0,0.00022,120]
[339378654,1727515005136,2000.0,0.00022,120]
[339378655,1727515012636,2000.0,0.00022,120]
[339378657,1727515019162,2000.0,0.00022,120]
[339378658,1727515026364,2000.0,0.00022,120]
[339378659,1727515032056,2000.0,0.00022,120]
[339378660,1727515037651,2000.0,0.00022,120]
[339378661,1727515043216,2000.0,0.00022,120]
[339378662,1727515049581,2000.0,0.00022,120]
[339378663,1727515055050,2000.0,0.00022,120]
[339378664,1727515062088,2000.0,0.00022,120]
[339378665,1727515068076,2000.0,0.00022,120]
[339378666,1727515074453,2000.0,0.00022,120]
[339378667,1727515082312,2000.0,0.00022,120]
[339378668,1727515088463,2000.0,0.00022,120]
[339378669,1727515094199,2000.0,0.00022,120]
[339378671,1727515103117,2000.0,0.00022,120]
[339378672,1727515109284,2000.0,0.00022,120]
[339378673,1727515115264,2000.0,0.00022,120]
[339378685,1727515122572,2000.0,0.00022,120]
[339378686,1727515131011,2000.0,0.00022,120]
[339378687,1727515137117,2000.0,0.00022,120]
[339378688,1727515188340,2000.0,0.00022,120]
[339378689,1727515194707,2000.0,0.00022,120]
[339378690,1727515200514,2000.0,0.00022,120]
[339378691,1727515207024,2000.0,0.00022,120]
[339378693,1727515214050,2000.0,0.00022,120]
[339378694,1727515217400,206.09,0.00010959,2]
[339378695,1727515218865,390.92,0.00011257,2]
[339378696,1727515220272,2000.0,0.00022,120]
[339378697,1727515227594,2000.0,0.00022,120]
[339378698,1727515234911,2000.0,0.00022,120]
[339378699,1727515241543,2000.0,0.00022,120]
[339378700,1727515242484,294.78,9.33e-05,2]
[339378701,1727515247434,2000.0,0.00022,120]
[339378702,1727515253772,2000.0,0.00022,120]
[339378703,1727515256797,362.0,0.00022,120]
[339378704,1727515262112,2000.0,0.00022,120]
[339378705,1727515268565,2000.0,0.00022,120]
[339378706,1727515268762,500.0,0.00022,120]
[339378707,1727515275133,2000.0,0.00022,120]
[339378708,1727515281841,2000.0,0.00022,120]
[339378709,1727515286238,3600.0,0.00022,120]
[339378710,1727515291261,2000.0,0.00022,120]
[339378711,1727515296927,2000.0,0.00022,120]
[339378726,1727515303989,2000.0,0.00022,120]
[339378727,1727515304854,2751.0,0.00011507,2]
[339378728,1727515362263,2000.0,0.00022,120]
[339378729,1727515368079,2000.0,0.00022,120]
[339378730,1727515376015,2000.0,0.00022,120]
[339378731,1727515382780,652.07395,0.00022,120]
[339378734,1727515423645,250.0,0.00011371,2]
[339378735,1727515434011,1000.0,0.00021,60]
[339378736,1727515435281,1000.0,0.00021,60]
[339378737,1727515436255,1000.0,0.00021,60]
[339378738,1727515437063,1000.0,0.00021,60]
[339378739,1727515437965,1000.0,0.00021,60]
[339378740,1727515438864,1000.0,0.00021,60]
[339378741,1727515439555,1000.0,0.00021,60]
[339378742,1727515440323,1000.0,0.00021,60]
[339378743,1727515441139,1000.0,0.00021,60]
[339378744,1727515441910,1000.0,0.00021,60]
[339378745,1727515446365,235.2,0.00011392,2]
[339378746,1727515458983,1000.0,0.00021,60]
[339378747,1727515460211,1000.0,0.00021,60]
[339378748,1727515507915,230.3,0.00011403,2]
[339378753,1727515581682,500.0,0.00011,2]
[339378754,1727515606316,68.26816701,0.00011512,2]
[339378825,1727515743117,1056.18364771,0.00022,120]
[339378845,1727515831694,-195.46,0.00011387,2]
[339378847,1727515831704,-1000.0,0.00011441,2]
[339378849,1727515831713,-181.73183299,0.00011512,2]
[339378851,1727515831721,-190.90777657,0.00011567,2]